[Event "*** Titled Tuesday 3|2 Blitz"]
[Site "Chess.com"]
[Date "2015.06.02"]
[Round "9"]
[White "VSERGUEI"]
[Black "ChadaevNikolay"]
[Result "1-0"]
[WhiteElo "2534"]
[BlackElo "2586"]
[TimeControl "180+2"]
[EndTime "12:51:44 PDT"]
[Termination "VSERGUEI won by resignation"]

1. d4 {[%clk 0:02:57]} 1... Nf6 {[%clk 0:03:00.8]} 2. c4 {[%clk 0:02:57.8]} 2...
e6 {[%clk 0:03:02.1]} 3. Nc3 {[%clk 0:02:58.9]} 3... Bb4 {[%clk 0:03:03]} 4. f3
{[%clk 0:02:59.4]} 4... c5 {[%clk 0:03:02.3]} 5. d5 {[%clk 0:02:59.8]} 5... O-O
{[%clk 0:03:03.1]} 6. e4 {[%clk 0:02:59.5]} 6... d6 {[%clk 0:03:04.3]} 7. Ne2
{[%clk 0:02:57.6]} 7... b5 {[%clk 0:03:03.7]} 8. Ng3 {[%clk 0:02:58.1]} 8... a6
{[%clk 0:02:39.5]} 9. a4 {[%clk 0:02:57.2]} 9... bxc4 {[%clk 0:02:37.8]} 10.
Bxc4 {[%clk 0:02:56.7]} 10... exd5 {[%clk 0:02:38.4]} 11. Bxd5 {[%clk
0:02:56.9]} 11... Nxd5 {[%clk 0:02:38.9]} 12. Qxd5 {[%clk 0:02:57]} 12... Ra7
{[%clk 0:02:37.9]} 13. Bf4 {[%clk 0:02:55.7]} 13... Be6 {[%clk 0:02:01.8]} 14.
Qxd6 {[%clk 0:02:55.7]} 14... Rd7 {[%clk 0:02:02.6]} 15. Qxb8 {[%clk 0:02:55.1]}
15... Qxb8 {[%clk 0:02:03.4]} 16. Bxb8 {[%clk 0:02:55.2]} 16... Rxb8 {[%clk
0:02:05.3]} 17. O-O {[%clk 0:02:53.6]} 17... Rd2 {[%clk 0:02:04.6]} 18. Rf2
{[%clk 0:02:52.8]} 18... Rd3 {[%clk 0:02:01.2]} 19. Rc1 {[%clk 0:02:50.3]} 19...
c4 {[%clk 0:02:02.3]} 20. Kf1 {[%clk 0:02:41.6]} 20... Bc5 {[%clk 0:02:01.3]}
21. Re2 {[%clk 0:02:41.4]} 21... g6 {[%clk 0:01:52.4]} 22. Nh1 {[%clk
0:02:37.3]} 22... h5 {[%clk 0:01:52.8]} 23. Nf2 {[%clk 0:02:38.1]} 23... Rd7
{[%clk 0:01:53.5]} 24. Rd1 {[%clk 0:02:37.4]} 24... Rxd1+ {[%clk 0:01:52]} 25.
Nfxd1 {[%clk 0:02:37.6]} 25... Kf8 {[%clk 0:01:49.9]} 26. Ke1 {[%clk 0:02:38]}
26... Ke7 {[%clk 0:01:50.8]} 27. Kd2 {[%clk 0:02:39]} 27... h4 {[%clk
0:01:48.9]} 28. Kc2 {[%clk 0:02:39.3]} 28... Bd6 {[%clk 0:01:49]} 29. h3 {[%clk
0:02:36.3]} 29... Be5 {[%clk 0:01:49]} 30. Ne3 {[%clk 0:02:36.6]} 30... Bd4
{[%clk 0:01:45.4]} 31. Ncd5+ {[%clk 0:02:35.7]} 31... Bxd5 {[%clk 0:01:41]} 32.
Nxd5+ {[%clk 0:02:35.3]} 32... Kd6 {[%clk 0:01:42.1]} 33. Nc3 {[%clk 0:02:35.6]}
33... Kc5 {[%clk 0:01:36.9]} 34. Rd2 {[%clk 0:02:34]} 34... Rb4 {[%clk
0:01:36.6]} 35. a5 {[%clk 0:02:33.1]} 35... g5 {[%clk 0:01:28.5]} 36. Rd1 {[%clk
0:02:33.3]} 36... f6 {[%clk 0:01:28]} 37. Rd2 {[%clk 0:02:34.3]} 37... Bxc3
{[%clk 0:01:21.3]} 38. bxc3 {[%clk 0:02:31.1]} 38... Ra4 {[%clk 0:01:21.9]} 39.
Rd5+ {[%clk 0:02:29.8]} 39... Kc6 {[%clk 0:01:22.8]} 40. Kb2 {[%clk 0:02:30.6]}
40... Kc7 {[%clk 0:01:19.6]} 41. e5 {[%clk 0:02:07]} 41... fxe5 {[%clk
0:01:18.7]} 42. Rxe5 {[%clk 0:02:07.5]} 42... Kd6 {[%clk 0:01:17]} 43. Rxg5
{[%clk 0:02:07.8]} 43... Ke7 {[%clk 0:01:17.8]} 44. Rh5 {[%clk 0:02:04.8]} 44...
Kf6 {[%clk 0:01:18.5]} 45. Rxh4 {[%clk 0:02:05.4]} 45... Rxa5 {[%clk 0:01:19.1]}
46. Rxc4 {[%clk 0:02:06.1]} 46... Re5 {[%clk 0:01:19.5]} 47. Rg4 {[%clk
0:02:02.3]} 47... a5 {[%clk 0:01:20]} 48. Kb3 {[%clk 0:02:02.7]} 48... Rb5+
{[%clk 0:01:21]} 49. Ka4 {[%clk 0:02:03.1]} 49... Rc5 {[%clk 0:01:22]} 50. c4
{[%clk 0:01:59.8]} 50... Kf7 {[%clk 0:01:23]} 51. h4 {[%clk 0:02:00.2]} 51...
Kf6 {[%clk 0:01:24.1]} 52. Kb3 {[%clk 0:02:01.1]} 52... Re5 {[%clk 0:01:23.6]}
53. Rg5 {[%clk 0:01:58.1]} 53... Re2 {[%clk 0:01:22.4]} 54. c5 {[%clk
0:01:53.6]} 1-0

[Event "*** Titled Tuesday 3|2 Blitz"]
[Site "Chess.com"]
[Date "2015.06.02"]
[Round "9"]
[White "9ShMat2"]
[Black "Hikaru"]
[Result "1-0"]
[WhiteElo "2530"]
[BlackElo "2800"]
[TimeControl "180+2"]
[EndTime "12:51:51 PDT"]
[Termination "9ShMat2 won on time"]

1. e4 {[%clk 0:03:01.9]} 1... c5 {[%clk 0:03:00.8]} 2. c3 {[%clk 0:03:02.8]}
2... Nf6 {[%clk 0:02:59.9]} 3. e5 {[%clk 0:03:03.9]} 3... Nd5 {[%clk 0:03:01.4]}
4. d4 {[%clk 0:03:05.8]} 4... cxd4 {[%clk 0:03:03]} 5. Nf3 {[%clk 0:03:06.4]}
5... Nc6 {[%clk 0:03:04.4]} 6. cxd4 {[%clk 0:03:06.9]} 6... d6 {[%clk
0:03:05.1]} 7. Bc4 {[%clk 0:03:07.5]} 7... Nb6 {[%clk 0:03:06.3]} 8. Bb5 {[%clk
0:03:08.2]} 8... dxe5 {[%clk 0:03:07.5]} 9. Nxe5 {[%clk 0:03:08.6]} 9... Bd7
{[%clk 0:03:09]} 10. Nc3 {[%clk 0:03:08.9]} 10... Nxe5 {[%clk 0:03:01.7]} 11.
dxe5 {[%clk 0:03:10.8]} 11... Bxb5 {[%clk 0:03:02.9]} 12. Nxb5 {[%clk
0:03:12.4]} 12... Qxd1+ {[%clk 0:03:03.2]} 13. Kxd1 {[%clk 0:03:14.3]} 13...
Rd8+ {[%clk 0:03:01.7]} 14. Ke2 {[%clk 0:03:15.8]} 14... a6 {[%clk 0:03:03]} 15.
Nc7+ {[%clk 0:02:32.3]} 15... Kd7 {[%clk 0:02:52.8]} 16. Be3 {[%clk 0:02:33.5]}
16... Nc4 {[%clk 0:02:52.2]} 17. Rac1 {[%clk 0:02:34.2]} 17... b5 {[%clk
0:02:45.3]} 18. Nxa6 {[%clk 0:02:25.6]} 18... Ra8 {[%clk 0:02:28.4]} 19. Rhd1+
{[%clk 0:02:08.7]} 19... Kc8 {[%clk 0:02:29.2]} 20. Rd5 {[%clk 0:01:49.6]} 20...
Rxa6 {[%clk 0:02:25.8]} 21. Rxb5 {[%clk 0:01:50.6]} 21... Rc6 {[%clk 0:02:23.8]}
22. b3 {[%clk 0:01:51.8]} 22... Nxe3 {[%clk 0:01:32.5]} 23. Rxc6+ {[%clk
0:01:39.7]} 23... Kd7 {[%clk 0:01:33.6]} 24. Ra6 {[%clk 0:01:41.3]} 24... Nf5
{[%clk 0:01:33.1]} 25. Rb7+ {[%clk 0:01:34.9]} 25... Kc8 {[%clk 0:01:34.1]} 26.
Raa7 {[%clk 0:01:36.3]} 26... g6 {[%clk 0:01:20.1]} 27. Rc7+ {[%clk 0:01:31.4]}
27... Kb8 {[%clk 0:01:19.9]} 28. Rab7+ {[%clk 0:01:22.1]} 28... Ka8 {[%clk
0:01:21]} 29. a4 {[%clk 0:01:23.3]} 29... Nd4+ {[%clk 0:01:07.8]} 30. Kd3 {[%clk
0:01:23.8]} 30... Nc6 {[%clk 0:01:09]} 31. Rb5 {[%clk 0:01:09.6]} 1-0

[Event "*** Titled Tuesday 3|2 Blitz"]
[Site "Chess.com"]
[Date "2015.06.02"]
[Round "9"]
[White "WanderingPuppet"]
[Black "MrHenriksson"]
[Result "1-0"]
[WhiteElo "2111"]
[BlackElo "2031"]
[TimeControl "180+2"]
[EndTime "12:52:13 PDT"]
[Termination "WanderingPuppet won on time"]

1. e4 {[%clk 0:03:01.9]} 1... c6 {[%clk 0:03:01]} 2. Nc3 {[%clk 0:03:02]} 2...
d5 {[%clk 0:03:02.2]} 3. Nf3 {[%clk 0:03:03]} 3... Bg4 {[%clk 0:03:01.3]} 4. d4
{[%clk 0:03:03.4]} 4... Nf6 {[%clk 0:02:59.1]} 5. e5 {[%clk 0:02:49.6]} 5... Ne4
{[%clk 0:02:59.9]} 6. Bd3 {[%clk 0:02:48.4]} 6... Nxc3 {[%clk 0:02:56]} 7. bxc3
{[%clk 0:02:48.9]} 7... e6 {[%clk 0:02:56.1]} 8. O-O {[%clk 0:02:48.7]} 8... c5
{[%clk 0:02:54.7]} 9. h3 {[%clk 0:02:47.3]} 9... Bxf3 {[%clk 0:02:51.6]} 10.
Qxf3 {[%clk 0:02:41.1]} 10... Nc6 {[%clk 0:02:53.5]} 11. Rb1 {[%clk 0:02:32.7]}
11... Rb8 {[%clk 0:02:28]} 12. c4 {[%clk 0:02:15.1]} 12... Nxd4 {[%clk
0:02:23.3]} 13. Qg4 {[%clk 0:02:09.9]} 13... h5 {[%clk 0:02:20.4]} 14. Qd1
{[%clk 0:01:58.7]} 14... dxc4 {[%clk 0:02:20.5]} 15. Bxc4 {[%clk 0:01:59.4]}
15... Nc6 {[%clk 0:02:21.4]} 16. Qe2 {[%clk 0:01:52.1]} 16... Be7 {[%clk
0:02:14]} 17. Rd1 {[%clk 0:01:50.9]} 17... Qc7 {[%clk 0:02:15]} 18. Bf4 {[%clk
0:01:39.9]} 18... g6 {[%clk 0:01:09.5]} 19. Qe4 {[%clk 0:01:38.3]} 19... O-O
{[%clk 0:01:05.3]} 20. Bxe6 {[%clk 0:01:37]} 20... Kh7 {[%clk 0:00:45.3]} 21.
Rd7 {[%clk 0:01:20.7]} 21... Qa5 {[%clk 0:00:34.6]} 22. Bb3 {[%clk 0:01:03.5]}
22... c4 {[%clk 0:00:09.2]} 23. Bxc4 {[%clk 0:00:51.2]} 23... Qa3 {[%clk
0:00:08.9]} 24. e6 {[%clk 0:00:45.1]} 24... fxe6 {[%clk 0:00:08.5]} 25. Bxb8
{[%clk 0:00:42.3]} 25... Nxb8 {[%clk 0:00:04.7]} 26. Bd3 {[%clk 0:00:25]} 1-0

[Event "*** Titled Tuesday 3|2 Blitz"]
[Site "Chess.com"]
[Date "2015.06.02"]
[Round "9"]
[White "Tirantes"]
[Black "Krutoy123"]
[Result "0-1"]
[WhiteElo "2236"]
[BlackElo "2155"]
[TimeControl "180+2"]
[EndTime "12:52:57 PDT"]
[Termination "Krutoy123 won by checkmate"]

1. c4 {[%clk 0:03:01.9]} 1... Nf6 {[%clk 0:02:58.2]} 2. Nc3 {[%clk 0:03:01]}
2... c5 {[%clk 0:02:58.2]} 3. Nf3 {[%clk 0:03:01.5]} 3... e6 {[%clk 0:02:57.6]}
4. g3 {[%clk 0:03:01.3]} 4... b6 {[%clk 0:02:58.3]} 5. Bg2 {[%clk 0:03:01]} 5...
Bb7 {[%clk 0:02:59.9]} 6. O-O {[%clk 0:03:02]} 6... Be7 {[%clk 0:03:01.4]} 7.
Re1 {[%clk 0:03:01.4]} 7... O-O {[%clk 0:03:02.2]} 8. e4 {[%clk 0:03:02.1]} 8...
d6 {[%clk 0:03:03.7]} 9. d3 {[%clk 0:02:59.5]} 9... Nc6 {[%clk 0:03:04.1]} 10.
b3 {[%clk 0:03:00.2]} 10... Nd7 {[%clk 0:02:49.7]} 11. d4 {[%clk 0:02:57]} 11...
cxd4 {[%clk 0:02:49.7]} 12. Nxd4 {[%clk 0:02:57.9]} 12... Nxd4 {[%clk
0:02:50.4]} 13. Qxd4 {[%clk 0:02:58.7]} 13... Bf6 {[%clk 0:02:52]} 14. Qd2
{[%clk 0:02:57.3]} 14... Qc8 {[%clk 0:02:09.4]} 15. Bb2 {[%clk 0:02:57]} 15...
Rd8 {[%clk 0:02:10.2]} 16. Rac1 {[%clk 0:02:50.3]} 16... Ne5 {[%clk 0:02:01.7]}
17. f4 {[%clk 0:02:41.7]} 17... Nc6 {[%clk 0:02:01.8]} 18. Nd5 {[%clk
0:02:35.4]} 18... Bxb2 {[%clk 0:01:57.7]} 19. Qxb2 {[%clk 0:02:34.7]} 19... Qd7
{[%clk 0:01:55.8]} 20. Ne3 {[%clk 0:02:28.5]} 20... Rac8 {[%clk 0:01:55.7]} 21.
Red1 {[%clk 0:02:27]} 21... Qc7 {[%clk 0:01:56.4]} 22. Rd2 {[%clk 0:02:21.2]}
22... Rd7 {[%clk 0:01:56.4]} 23. Rcd1 {[%clk 0:02:20.2]} 23... Rcd8 {[%clk
0:01:56.1]} 24. b4 {[%clk 0:02:16.8]} 24... Ne7 {[%clk 0:01:49.4]} 25. a3 {[%clk
0:02:15.6]} 25... Bc6 {[%clk 0:01:48.1]} 26. Qb1 {[%clk 0:01:59.4]} 26... Bb7
{[%clk 0:01:27.2]} 27. Rd4 {[%clk 0:01:56.9]} 27... Nc6 {[%clk 0:01:27.2]} 28.
R4d3 {[%clk 0:01:53.6]} 28... Ne7 {[%clk 0:01:28.2]} 29. R3d2 {[%clk 0:01:51.4]}
29... a6 {[%clk 0:01:29]} 30. Qb2 {[%clk 0:01:43.1]} 30... b5 {[%clk 0:01:27.8]}
31. Rc1 {[%clk 0:01:38.3]} 31... bxc4 {[%clk 0:01:25.6]} 32. Nxc4 {[%clk
0:01:33]} 32... Qb8 {[%clk 0:01:27.1]} 33. Na5 {[%clk 0:01:24.7]} 33... Ba8
{[%clk 0:01:28]} 34. Rcd1 {[%clk 0:01:17.2]} 34... d5 {[%clk 0:01:16.8]} 35. e5
{[%clk 0:01:14.4]} 35... Rc8 {[%clk 0:01:14.5]} 36. Rc1 {[%clk 0:01:13.9]} 36...
Qb6+ {[%clk 0:01:14]} 37. Kh1 {[%clk 0:01:05.8]} 37... Rxc1+ {[%clk 0:01:01.9]}
38. Qxc1 {[%clk 0:01:05.5]} 38... Rc7 {[%clk 0:01:03.8]} 39. Rc2 {[%clk
0:01:03.6]} 39... Rxc2 {[%clk 0:01:04.5]} 40. Qxc2 {[%clk 0:01:04.4]} 40... Qe3
{[%clk 0:01:06]} 41. h3 {[%clk 0:00:41.2]} 41... h5 {[%clk 0:01:07]} 42. Qc7
{[%clk 0:00:33.8]} 42... Nf5 {[%clk 0:01:05.6]} 43. Qd8+ {[%clk 0:00:27.4]}
43... Kh7 {[%clk 0:01:06.3]} 44. Qxa8 {[%clk 0:00:22]} 44... Nxg3+ {[%clk
0:01:07.1]} 45. Kh2 {[%clk 0:00:22.2]} 45... Ne2 {[%clk 0:01:08.7]} 46. Qxa6
{[%clk 0:00:05.4]} 46... Qg1# {[%clk 0:01:08.1]} 0-1

[Event "*** Titled Tuesday 3|2 Blitz"]
[Site "Chess.com"]
[Date "2015.06.02"]
[Round "9"]
[White "1random"]
[Black "WGMCarlaHeredia"]
[Result "0-1"]
[WhiteElo "2039"]
[BlackElo "2063"]
[TimeControl "180+2"]
[EndTime "12:53:14 PDT"]
[Termination "WGMCarlaHeredia won by checkmate"]

1. e4 {[%clk 0:03:01.9]} 1... c6 {[%clk 0:02:56.6]} 2. d4 {[%clk 0:03:01.5]}
2... d5 {[%clk 0:02:56.5]} 3. e5 {[%clk 0:03:03.1]} 3... c5 {[%clk 0:02:55.8]}
4. dxc5 {[%clk 0:03:03.8]} 4... Nc6 {[%clk 0:02:54.9]} 5. a3 {[%clk 0:02:59.1]}
5... Nxe5 {[%clk 0:02:30]} 6. b4 {[%clk 0:02:54.1]} 6... g6 {[%clk 0:02:30]} 7.
Bb2 {[%clk 0:02:52.9]} 7... Bg7 {[%clk 0:02:30.3]} 8. Bb5+ {[%clk 0:02:53.2]}
8... Bd7 {[%clk 0:02:25.4]} 9. Bxd7+ {[%clk 0:02:52.3]} 9... Qxd7 {[%clk
0:02:19.9]} 10. Nc3 {[%clk 0:02:47]} 10... Nc4 {[%clk 0:02:17.7]} 11. Qc1 {[%clk
0:02:32.5]} 11... d4 {[%clk 0:01:57.4]} 12. Nce2 {[%clk 0:02:14.1]} 12... Qe6
{[%clk 0:01:45.8]} 13. Nf3 {[%clk 0:02:11]} 13... d3 {[%clk 0:01:42.6]} 14. cxd3
{[%clk 0:02:03]} 14... Nxb2 {[%clk 0:01:39.7]} 15. O-O {[%clk 0:01:48.5]} 15...
Qxe2 {[%clk 0:01:22.7]} 16. Re1 {[%clk 0:01:45.7]} 16... Qxd3 {[%clk 0:01:19.3]}
17. Qg5 {[%clk 0:01:32.9]} 17... Nf6 {[%clk 0:00:49.4]} 18. Ne5 {[%clk
0:01:19.1]} 18... Qf5 {[%clk 0:00:25.2]} 19. Qd2 {[%clk 0:01:17.5]} 19... Na4
{[%clk 0:00:24.6]} 20. Qe2 {[%clk 0:00:58.9]} 20... O-O {[%clk 0:00:23.9]} 21.
Qb5 {[%clk 0:00:59.6]} 21... Nc3 {[%clk 0:00:23.5]} 22. Qxb7 {[%clk 0:00:53]}
22... Nfe4 {[%clk 0:00:24.3]} 23. Nd7 {[%clk 0:00:42]} 23... Qxf2+ {[%clk
0:00:24]} 24. Kh1 {[%clk 0:00:43]} 24... Rfd8 {[%clk 0:00:22.1]} 25. c6 {[%clk
0:00:44]} 25... Qh4 {[%clk 0:00:18.2]} 26. h3 {[%clk 0:00:17.6]} 26... Nf2+
{[%clk 0:00:16.2]} 27. Kh2 {[%clk 0:00:18.8]} 27... Nce4 {[%clk 0:00:15.6]} 28.
c7 {[%clk 0:00:13.5]} 28... Qf4+ {[%clk 0:00:13.4]} 29. Kg1 {[%clk 0:00:12.9]}
29... Bd4 {[%clk 0:00:10.7]} 30. cxd8=Q+ {[%clk 0:00:12.5]} 30... Rxd8 {[%clk
0:00:12.6]} 31. Qd5 {[%clk 0:00:08.8]} 31... Ng3 {[%clk 0:00:09.7]} 32. Nf6+
{[%clk 0:00:07.6]} 32... exf6 {[%clk 0:00:09.2]} 33. Qxd8+ {[%clk 0:00:08.6]}
33... Kg7 {[%clk 0:00:10.8]} 34. Re8 {[%clk 0:00:09.1]} 34... Nxh3+ {[%clk
0:00:11.8]} 35. Kh2 {[%clk 0:00:09.8]} 35... Nf5+ {[%clk 0:00:07.6]} 36. Kh1
{[%clk 0:00:09.1]} 36... Nf2+ {[%clk 0:00:07.6]} 37. Kg1 {[%clk 0:00:09.8]}
37... Nh3+ {[%clk 0:00:06.6]} 38. Kh1 {[%clk 0:00:10.8]} 38... Nf2+ {[%clk
0:00:07.4]} 39. Kg1 {[%clk 0:00:12.3]} 39... Ng4+ {[%clk 0:00:08.5]} 40. Kh1
{[%clk 0:00:13.5]} 40... Qh2# {[%clk 0:00:09.5]} 0-1

[Event "*** Titled Tuesday 3|2 Blitz"]
[Site "Chess.com"]
[Date "2015.06.02"]
[Round "9"]
[White "ruifeng"]
[Black "jlandaw"]
[Result "0-1"]
[WhiteElo "2129"]
[BlackElo "2336"]
[TimeControl "180+2"]
[EndTime "12:53:18 PDT"]
[Termination "jlandaw won by checkmate"]

1. e4 {[%clk 0:03:01.9]} 1... e5 {[%clk 0:02:57.2]} 2. Nf3 {[%clk 0:03:01.8]}
2... Nc6 {[%clk 0:02:57.5]} 3. Bc4 {[%clk 0:03:02.6]} 3... Bc5 {[%clk
0:02:55.5]} 4. b4 {[%clk 0:03:03.3]} 4... Bxb4 {[%clk 0:02:56.1]} 5. c3 {[%clk
0:03:04.3]} 5... Bd6 {[%clk 0:02:57.5]} 6. d4 {[%clk 0:02:59.7]} 6... Nf6 {[%clk
0:02:58.4]} 7. O-O {[%clk 0:02:58]} 7... O-O {[%clk 0:02:58.7]} 8. Re1 {[%clk
0:02:52.8]} 8... Re8 {[%clk 0:02:48.6]} 9. Nbd2 {[%clk 0:02:53]} 9... Bf8 {[%clk
0:02:46.2]} 10. Ng5 {[%clk 0:02:03.8]} 10... Re7 {[%clk 0:02:20]} 11. Ndf3
{[%clk 0:01:54.3]} 11... d6 {[%clk 0:01:52.5]} 12. Nxf7 {[%clk 0:01:23]} 12...
Rxf7 {[%clk 0:01:49.7]} 13. Ng5 {[%clk 0:01:23.8]} 13... d5 {[%clk 0:01:48]} 14.
Nxf7 {[%clk 0:01:07.4]} 14... Kxf7 {[%clk 0:01:49.8]} 15. exd5 {[%clk
0:01:08.5]} 15... Na5 {[%clk 0:01:45.4]} 16. dxe5 {[%clk 0:00:52.7]} 16... Nxc4
{[%clk 0:01:44.2]} 17. exf6 {[%clk 0:00:50.1]} 17... Qxf6 {[%clk 0:01:41.7]} 18.
Qh5+ {[%clk 0:00:47]} 18... Kg8 {[%clk 0:01:35.8]} 19. Bg5 {[%clk 0:00:45.2]}
19... Qf7 {[%clk 0:01:21.9]} 20. Qh4 {[%clk 0:00:42.1]} 20... Nd6 {[%clk
0:01:18.7]} 21. Re5 {[%clk 0:00:38.8]} 21... h6 {[%clk 0:00:43.6]} 22. Bd2
{[%clk 0:00:20.5]} 22... g5 {[%clk 0:00:34.1]} 23. Bxg5 {[%clk 0:00:13.6]} 23...
hxg5 {[%clk 0:00:36]} 24. Rxg5+ {[%clk 0:00:14]} 24... Bg7 {[%clk 0:00:37.1]}
25. Re1 {[%clk 0:00:14.3]} 25... Bf5 {[%clk 0:00:35.7]} 26. Rg3 {[%clk
0:00:10.4]} 26... Re8 {[%clk 0:00:34.3]} 27. Rge3 {[%clk 0:00:08.2]} 27... Rxe3
{[%clk 0:00:34.5]} 28. Rxe3 {[%clk 0:00:09.4]} 28... Bf6 {[%clk 0:00:34.8]} 29.
Qg3+ {[%clk 0:00:09.1]} 29... Bg6 {[%clk 0:00:36.3]} 30. h4 {[%clk 0:00:09]}
30... Nf5 {[%clk 0:00:37]} 31. Qf4 {[%clk 0:00:10]} 31... Nxe3 {[%clk
0:00:37.3]} 32. fxe3 {[%clk 0:00:11.4]} 32... Bxc3 {[%clk 0:00:35]} 33. Qg5
{[%clk 0:00:11.2]} 33... Bf6 {[%clk 0:00:33.9]} 34. Qg4 {[%clk 0:00:12.6]} 34...
Kh7 {[%clk 0:00:34.1]} 35. e4 {[%clk 0:00:12.6]} 35... Bd4+ {[%clk 0:00:34]} 36.
Kh2 {[%clk 0:00:13.1]} 36... Be5+ {[%clk 0:00:34.7]} 37. Kg1 {[%clk 0:00:14.1]}
37... Qf4 {[%clk 0:00:33.8]} 38. Qd7+ {[%clk 0:00:14.4]} 38... Kh6 {[%clk
0:00:34.7]} 39. Qd8 {[%clk 0:00:15]} 39... Bxe4 {[%clk 0:00:22.8]} 40. h5 {[%clk
0:00:08.9]} 40... Qe3+ {[%clk 0:00:20.8]} 41. Kf1 {[%clk 0:00:09.2]} 41... Bd3#
{[%clk 0:00:21.7]} 0-1

[Event "*** Titled Tuesday 3|2 Blitz"]
[Site "Chess.com"]
[Date "2015.06.02"]
[Round "9"]
[White "Genghis_K"]
[Black "RitvarsReimanis"]
[Result "0-1"]
[WhiteElo "2534"]
[BlackElo "2391"]
[TimeControl "180+2"]
[EndTime "12:53:25 PDT"]
[Termination "RitvarsReimanis won by resignation"]

1. e4 {[%clk 0:02:58.1]} 1... e6 {[%clk 0:03:01]} 2. d3 {[%clk 0:02:58.4]} 2...
d5 {[%clk 0:03:02.9]} 3. Qe2 {[%clk 0:03:00.1]} 3... Be7 {[%clk 0:03:02.2]} 4.
Nf3 {[%clk 0:03:01.5]} 4... c6 {[%clk 0:03:00.9]} 5. g3 {[%clk 0:03:03.1]} 5...
f5 {[%clk 0:03:02]} 6. Bg2 {[%clk 0:03:04.7]} 6... fxe4 {[%clk 0:03:01.5]} 7.
dxe4 {[%clk 0:03:05.6]} 7... Nf6 {[%clk 0:03:02.9]} 8. Nbd2 {[%clk 0:03:06.4]}
8... O-O {[%clk 0:03:00.1]} 9. O-O {[%clk 0:03:07.8]} 9... a5 {[%clk 0:02:59.8]}
10. c4 {[%clk 0:03:04.9]} 10... d4 {[%clk 0:02:59.1]} 11. Ne1 {[%clk 0:02:51.7]}
11... e5 {[%clk 0:02:59.3]} 12. Nd3 {[%clk 0:02:51.4]} 12... Nbd7 {[%clk
0:02:51.8]} 13. f4 {[%clk 0:02:49.6]} 13... Bd6 {[%clk 0:02:52.6]} 14. f5 {[%clk
0:02:50.4]} 14... Nc5 {[%clk 0:02:51.3]} 15. h3 {[%clk 0:02:50.9]} 15... Nfd7
{[%clk 0:02:51.4]} 16. b3 {[%clk 0:02:47.9]} 16... a4 {[%clk 0:02:49.3]} 17. Rb1
{[%clk 0:02:45.2]} 17... axb3 {[%clk 0:02:49.2]} 18. axb3 {[%clk 0:02:47.1]}
18... Ra2 {[%clk 0:02:48.4]} 19. b4 {[%clk 0:02:46.1]} 19... Na4 {[%clk
0:02:45.8]} 20. c5 {[%clk 0:02:40]} 20... Nc3 {[%clk 0:02:43.6]} 21. Qe1 {[%clk
0:02:39.5]} 21... Nxb1 {[%clk 0:02:38]} 22. Nxb1 {[%clk 0:02:40.7]} 22... Be7
{[%clk 0:02:32.8]} 23. Qd1 {[%clk 0:02:41.8]} 23... Kh8 {[%clk 0:02:28.1]} 24.
Qb3 {[%clk 0:02:42.5]} 24... Ra8 {[%clk 0:02:28.1]} 25. Nd2 {[%clk 0:02:43.8]}
25... b6 {[%clk 0:02:28.1]} 26. cxb6 {[%clk 0:02:42.8]} 26... Qxb6 {[%clk
0:02:28.2]} 27. Nc4 {[%clk 0:02:43.8]} 27... Qb5 {[%clk 0:02:28.6]} 28. Bd2
{[%clk 0:02:43.9]} 28... Ba6 {[%clk 0:02:13.2]} 29. Rc1 {[%clk 0:02:39.3]} 29...
c5 {[%clk 0:02:11.1]} 30. Bf1 {[%clk 0:02:39.6]} 30... cxb4 {[%clk 0:02:09.4]}
31. Ncb2 {[%clk 0:02:20.9]} 31... Qb7 {[%clk 0:02:05.6]} 32. Qe6 {[%clk
0:02:20.7]} 32... Bf6 {[%clk 0:02:06.2]} 33. Bxb4 {[%clk 0:02:16.5]} 33... Rfe8
{[%clk 0:02:07.4]} 34. Qf7 {[%clk 0:02:14.8]} 34... Bxd3 {[%clk 0:02:00.5]} 35.
Nxd3 {[%clk 0:02:13]} 35... Nc5 {[%clk 0:01:55]} 36. Qxb7 {[%clk 0:02:07.7]}
36... Nxb7 {[%clk 0:01:56.9]} 37. Rc7 {[%clk 0:02:09.1]} 37... Rab8 {[%clk
0:01:37.3]} 38. g4 {[%clk 0:01:59.8]} 38... h6 {[%clk 0:01:36]} 39. Ne1 {[%clk
0:01:49.8]} 39... Rec8 {[%clk 0:01:33.6]} 40. Rd7 {[%clk 0:01:51.1]} 40... Nc5
{[%clk 0:01:34.2]} 41. Bxc5 {[%clk 0:01:48]} 41... Rxc5 {[%clk 0:01:36.1]} 42.
Nd3 {[%clk 0:01:49.5]} 42... Rc2 {[%clk 0:01:36.7]} 43. h4 {[%clk 0:01:49.8]}
43... Rb1 {[%clk 0:01:33]} 44. g5 {[%clk 0:01:50]} 44... hxg5 {[%clk 0:01:33.4]}
45. Nf2 {[%clk 0:01:22.2]} 45... Rcc1 {[%clk 0:01:32]} 46. Kg2 {[%clk
0:01:16.7]} 46... Rxf1 {[%clk 0:01:32.5]} 47. h5 {[%clk 0:01:18.3]} 47... Rxf2+
{[%clk 0:01:29.5]} 48. Kxf2 {[%clk 0:01:19.6]} 48... Rb3 {[%clk 0:01:31.1]} 49.
h6 {[%clk 0:01:20.6]} 49... Kg8 {[%clk 0:01:26.3]} 50. hxg7 {[%clk 0:01:19.3]}
50... Bxg7 {[%clk 0:01:28.2]} 51. Rd6 {[%clk 0:01:20.4]} 51... Re3 {[%clk
0:01:25.4]} 52. Rg6 {[%clk 0:01:20.9]} 52... Rxe4 {[%clk 0:01:25.5]} 53. Rxg5
{[%clk 0:01:22.2]} 53... Kf7 {[%clk 0:01:25.7]} 54. Rg6 {[%clk 0:01:21.9]} 54...
Rf4+ {[%clk 0:01:26.7]} 55. Ke2 {[%clk 0:01:23.6]} 55... Rxf5 {[%clk 0:01:28.6]}
56. Ra6 {[%clk 0:01:25.5]} 56... Rf6 {[%clk 0:01:29.4]} 57. Ra7+ {[%clk
0:01:26.7]} 57... Kg6 {[%clk 0:01:30.8]} 58. Kd3 {[%clk 0:01:28.6]} 58... Rf3+
{[%clk 0:01:29.1]} 59. Ke4 {[%clk 0:01:29.9]} 59... Re3+ {[%clk 0:01:30.4]} 60.
Kd5 {[%clk 0:01:31.5]} 60... d3 {[%clk 0:01:31.6]} 61. Ra1 {[%clk 0:01:32.9]}
61... d2 {[%clk 0:01:32.2]} 62. Rg1+ {[%clk 0:01:33.9]} 62... Kf7 {[%clk
0:01:33.3]} 63. Rf1+ {[%clk 0:01:35.1]} 63... Bf6 {[%clk 0:01:34.7]} 64. Rd1
{[%clk 0:01:37]} 64... Rd3+ {[%clk 0:01:35.3]} 65. Ke4 {[%clk 0:01:38.9]} 65...
Rd6 {[%clk 0:01:35.9]} 66. Ke3 {[%clk 0:01:40.6]} 66... Bg5+ {[%clk 0:01:36.7]}
67. Ke2 {[%clk 0:01:42.5]} 67... Ke6 {[%clk 0:01:37.9]} 68. Kf2 {[%clk
0:01:43.6]} 68... Kf5 {[%clk 0:01:38.8]} 69. Ke2 {[%clk 0:01:45.5]} 69... Rh6
{[%clk 0:01:39.7]} 70. Rf1+ {[%clk 0:01:46.5]} 70... Ke4 {[%clk 0:01:41.1]} 71.
Kd1 {[%clk 0:01:48.2]} 71... Ra6 {[%clk 0:01:41.4]} 72. Ke2 {[%clk 0:01:49.3]}
72... Rc6 {[%clk 0:01:42.6]} 73. Rg1 {[%clk 0:01:49.7]} 73... Bf4 {[%clk
0:01:42.9]} 74. Ra1 {[%clk 0:01:46.8]} 74... Rc1 {[%clk 0:01:42.7]} 75. Ra4+
{[%clk 0:01:46.4]} 75... Kd5 {[%clk 0:01:43]} 76. Ra5+ {[%clk 0:01:45.1]} 76...
Ke6 {[%clk 0:01:44.2]} 77. Ra6+ {[%clk 0:01:46.6]} 77... Kf5 {[%clk 0:01:45.6]}
78. Rd6 {[%clk 0:01:48.2]} 78... Re1+ {[%clk 0:01:46.5]} 79. Kf2 {[%clk
0:01:44.3]} 79... d1=Q {[%clk 0:01:43.2]} 80. Rxd1 {[%clk 0:01:45.9]} 80... Rxd1
{[%clk 0:01:44.6]} 81. Kf3 {[%clk 0:01:47.8]} 81... Rd3+ {[%clk 0:01:44.3]} 82.
Ke2 {[%clk 0:01:49]} 82... Ke4 {[%clk 0:01:45.1]} 0-1